Cogmind - Beta 9.2 @@@ ROGUE MODE // 2019.11.21 @ 23:18:37 Player: LudumSi Result: Destroyed by Y-45 Defender with Beam Rifle Performance ------------- Evolutions (1) 500 Regions Visited (2) 400 Robots Destroyed (16) 80 Value Destroyed (368) 368 Prototype IDs (0) 0 Alien Tech Used (0) 0 Bonus (0) 0 TOTAL SCORE: 1348 Bonus ------- None Cogmind --------- Core Integrity 0/400 Matter 300/300 Energy 99/100 System Corruption 0% Temperature Cool (9) Movement Core (100) Ox1 Location -9/Materials Parts ------- > --- POWER (1) -------- (None) > --- PROPULSION (2) --- (None) > --- UTILITY (3) ------ Small Storage Unit > --- WEAPON (3) ------- (None) > --- INVENTORY (6) ---- (None) Peak State ------------ > --- POWER ------------ Light Nuclear Core > --- PROPULSION ------- Wheel Wheel > --- UTILITY ---------- Heat Sink Small Storage Unit Medium Armor Plating > --- WEAPON ----------- Medium Laser Particle Gun Beam Cannon > --- INVENTORY -------- Ion Engine Light Treads Wheel Improved Terrain Scanner Spread Laser [Rating: 13] Favorites ----------- Power Light Nuclear Core Engine Ion Engine Power Core Light Nuclear Core Propulsion Wheel Treads Light Treads Wheel Wheel Utility Small Storage Unit Device Heat Sink Storage Small Storage Unit Protection Medium Armor Plating Weapon Particle Gun Energy Gun Particle Gun Energy Cannon Beam Cannon Build | -11 -10 -9 ------- Run | Scr Mat Mat Slots Evolved 2 | . . 2 Power . | . . . Propulsion . | . . . Utility 1 | . . 1 Weapon 1 | . . 1 Parts Attached 25 | 6 10 9 Power 4 | 1 2 1 Engine 2 | 1 . 1 Core 2 | . 2 . Reactor . | . . . Propulsion 6 | 2 2 2 Treads 1 | . . 1 Leg . | . . . Wheel 5 | 2 2 1 Hover . | . . . Flight . | . . . Utility 8 | 1 3 4 Device 4 | . 2 2 Storage 1 | 1 . . Processor . | . . . Hackware . | . . . Protection 3 | . 1 2 Artifact . | . . . Weapon 7 | 2 3 2 Energy Gun 6 | 2 2 2 Energy Cannon 1 | . 1 . Ballistic Gun . | . . . Ballistic Cannon . | . . . Launcher . | . . . Special Weapon . | . . . Impact Weapon . | . . . Slashing Weapon . | . . . Piercing Weapon . | . . . Special Melee Weapon . | . . . Unidentified Prototypes . | . . . Parts Lost 16 | . 1 15 Power 2 | . . 2 Propulsion 5 | . 1 4 Utility 5 | . . 5 Weapon 4 | . . 4 Highest Loss Streak 14 | . 1 14 Average Slot Usage (%) 83 | . 95 74 Engine 4 | . 8 1 Core 6 | . 6 7 Wheel 20 | . 26 16 Device 10 | . 7 13 Storage 12 | . 14 11 Protection 4 | . 4 4 Energy Gun 18 | . 26 11 Energy Cannon 4 | . 1 7 Naked Turns . | . . . Heaviest Build 25 | 12 19 25 Greatest Support 32 | 32 32 20 Greatest Overweight (x) 3 | . 1 3 Average Overweight (x) . | . . . Largest Inventory Capacity 6 | 6 6 6 Average Capacity 5 | 5 6 6 Most Carried 6 | 4 6 6 Average Carried 4 | 3 5 3 Final Capacity 6 | 6 6 6 Final Carried 6 | 4 6 . Class Distribution -------------------- 47% | Mutant 39% | Scavenger-Mutant 12% | Scavenger-Gunner Dominant Class ---------------- Mutant | -10/Materials Scavenger-Mutant | -9/Materials Resources | -11 -10 -9 ----------- Run | Scr Mat Mat Matter Collected 421 | 189 104 128 Remotely . | . . . Salvage Created 459 | . 195 264 Parts 34 | . 13 21 Haulers Intercepted . | . . . Recyclers Shooed . | . . . Parts Field Recycled . | . . . Retrieved Matter . | . . . Parts Self-Destructed . | . . . Prevented . | . . . Kills | -11 -10 -9 ------- Run | Scr Mat Mat Combat Hostiles Destroyed 14 | . 3 11 Melee 1 | . . 1 Guns 12 | . 3 9 Cannons 1 | . . 1 Classes Destroyed 4 | . 2 2 Worker 2 | . 2 . Swarmer 6 | . . 6 Grunt 7 | . 3 4 Sentry 1 | . . 1 Best Kill Streak 6 | . 5 6 Combat Bots Only 6 | . 2 6 Max Kills in Single Turn 2 | . 1 2 Gunslinging . | . . . Exploded . | . . . Melee 1 | . . 1 Uniques/NPCs Destroyed . | . . . Combat | -11 -10 -9 -------- Run | Scr Mat Mat Damage Taken 1604 | . 191 1413 Core 444 | . 33 411 Absorbed by Shields . | . . . Core Remaining (%) 93 | 100 86 . Volleys Fired 38 | . 15 23 Largest 3 | . 2 3 Hottest 175 | . 125 175 Shots Fired 74 | . 29 45 Gun 57 | . 28 29 Cannon 17 | . 1 16 Launcher . | . . . Special . | . . . Kinetic . | . . . Thermal 60 | . 15 45 Explosive . | . . . Electromagnetic 14 | . 14 . Robot Hit Streak 8 | . 4 8 Robot Miss Streak 6 | . 3 6 Penetration Max . | . . . Secondary Targets 2 | . 2 . Max Gunslinging Chain 1 | . 1 . Shots Hit Robots 40 | . 15 25 Core Hits 31 | . 9 22 Critical Hits . | . . . Critical Kills . | . . . Critical Parts Destroyed . | . . . Melee Attacks . | . . . Impact . | . . . Slashing . | . . . Piercing . | . . . Sneak Attacks . | . . . Combat Hostiles . | . . . Follow-up Attacks . | . . . Damage Inflicted 591 | . 200 391 Guns 485 | . 200 285 Cannons 105 | . . 105 Explosions . | . . . Melee . | . . . Ramming 1 | . . 1 Kinetic . | . . . Thermal 490 | . 100 390 Explosive . | . . . Electromagnetic 100 | . 100 . Impact . | . . . Slashing . | . . . Piercing . | . . . Highest Corruption . | . . . Average Corruption . | . . . Corruption Purged . | . . . Overload Shots . | . . . Overflow Damage . | . . . Projectiles . | . . . Explosions . | . . . Melee . | . . . Knockbacks . | . . . Impact . | . . . Kinetic . | . . . Secondary . | . . . Self-Inflicted Damage . | . . . Shots . | . . . Rammed 2 | . . 2 Targets Rammed 2 | . . 2 Kicked . | . . . Crushed . | . . . Highest Temperature 399 | . 399 301 Average Temperature 173 | . 195 154 Received Heat Transfer 456 | . 93 363 Effects 1 | . 1 . Matter Decay 1 | . 1 . Siege Activations . | . . . Robots Corrupted . | . . . Combat Hostiles . | . . . Parts Fried . | . . . Impact Corruptions . | . . . Robots Melted . | . . . Combat Hostiles . | . . . Parts Melted 2 | . . 2 Heat Transferred 1060 | . 225 835 Parts Sabotaged . | . . . Parts Stolen . | . . . Parts Stripped . | . . . Power Chain Reactions . | . . . Missiles Intercepted . | . . . Alert | -11 -10 -9 ------- Run | Scr Mat Mat Peak Influence 207 | . 100 207 Average Influence 79 | . 57 124 Maximum Alert Level 1 | . . 1 Low Security (%) 98 | 100 100 96 Level 1 1 | . . 3 Level 2 . | . . . Level 3 . | . . . Level 4 . | . . . Level 5 . | . . . High Security . | . . . Max Security . | . . . Squads Dispatched 1 | . . 1 Investigation 1 | . . 1 Extermination . | . . . Reinforcement . | . . . Assault . | . . . Garrison . | . . . Intercept . | . . . Construction Impeded . | . . . Haulers Reinforced . | . . . Stealth | -11 -10 -9 --------- Run | Scr Mat Mat Distress Signals 2 | . 2 . Communications Jammed . | . . . Distress Signals . | . . . Times Spotted 19 | . 6 13 Peak Tracking Total 8 | . 6 8 Tactical Retreats 1 | . 1 . Traps | -11 -10 -9 ------- Run | Scr Mat Mat Traps Triggered 2 | . 2 . Indirectly . | . . . Trap Hack Attempts . | . . . Triggered . | . . . Disarmed . | . . . Reprogrammed . | . . . Reused . | . . . Traps Extracted . | . . . Installed . | . . . Triggered . | . . . Machines | -11 -10 -9 ---------- Run | Scr Mat Mat Machines Disabled 1 | . . 1 Max in Single Turn 1 | . . 1 Machines Sabotaged . | . . . Garrisons Compromised . | . . . Overloaded Fab Kills . | . . . Fab Network Shutdowns . | . . . Hacking | -11 -10 -9 --------- Run | Scr Mat Mat Machines Accessed 2 | . . 2 Terminals 1 | . . 1 Fabricators . | . . . Repair Stations . | . . . Recycling Units 1 | . . 1 Scanalyzers . | . . . Garrison Access . | . . . Total Hacks 4 | . . 4 Successful . | . . . Failed 4 | . . 4 Catastrophic 1 | . . 1 Database Lockouts . | . . . Manual 2 | . . 2 Terminals 2 | . . 2 Fabricators . | . . . Repair Stations . | . . . Recycling Units 2 | . . 2 Scanalyzers . | . . . Garrison Access . | . . . Terminal Hacks . | . . . Fabricator Hacks . | . . . Repair Station Hacks . | . . . Recycling Unit Hacks . | . . . Scanalyzer . | . . . Garrison Access Hacks . | . . . Unauthorized Hacks 2 | . . 2 Terminals . | . . . Fabricators . | . . . Repair Stations . | . . . Recycling Units . | . . . Scanalyzers . | . . . Garrison Access . | . . . Data Cores Recovered . | . . . Used . | . . . Hacking Detections 2 | . . 2 Full Trace Events 1 | . . 1 Feedback Events . | . . . Feedback Blocked . | . . . Robot Schematics Acquired . | . . . Robots Built . | . . . Matter . | . . . Time . | . . . Total Robot Build Rating . | . . . Part Schematics Acquired . | . . . Parts Built . | . . . Matter . | . . . Time . | . . . Total Part Build Rating . | . . . Parts Repaired . | . . . Time . | . . . Parts Recycled . | . . . Recycled Matter . | . . . Retrieved Matter . | . . . Retrieved Components . | . . . Parts Scanalyzed . | . . . Part Schematics Acquired . | . . . Parts Damaged . | . . . Bothacking | -11 -10 -9 ------------ Run | Scr Mat Mat Used RIF Installer . | . . . Robots Hacked . | . . . Non-combat . | . . . Combat . | . . . Robot Hacks Applied . | . . . Relay Couplers Released . | . . . Robots Rewired . | . . . Allies Hacked . | . . . Hacks Repelled . | . . . Allies | -11 -10 -9 -------- Run | Scr Mat Mat Total Allies . | . . . Largest Group . | . . . Highest-Rated Group . | . . . Highest-Rated Ally . | . . . Total Orders . | . . . Ally Attacks . | . . . Total Damage . | . . . Kills . | . . . Allies Corrupted . | . . . Allies Melted . | . . . Intel | -11 -10 -9 ------- Run | Scr Mat Mat Robot Analysis Total . | . . . Derelict Logs Recovered . | . . . Drone Launches . | . . . Drone Recoveries . | . . . Exploration | -11 -10 -9 ------------- Run | Scr Mat Mat Turns Passed 573 | 91 217 265 Spaces Moved 435 | 76 165 194 Core 22 | 7 . 15 Treads 13 | . . 13 Legs . | . . . Wheels 400 | 69 165 166 Hover . | . . . Flight . | . . . Fastest Speed 50 | 50 80 80 Average Speed 91 | 95 87 94 Slowest Speed 200 | 100 110 200 Overloaded Moves . | . . . Propulsion Burnouts . | . . . Robots Hopped . | . . . Cave-ins Triggered . | . . . Exploration Rate (%) 19 | 4 40 14 Regions Visited 2 Branch Regions . Pre-discovered Areas . | . . . Known Exits Taken . | . . . Unknown Exits Taken 2 | 1 1 . Scrap Searched . | . . . Spaces Dug . | . . . Terrain Destroyed . | . . . Melee . | . . . Projectile . | . . . AOE . | . . . Actions | -11 -10 -9 --------- Run | Scr Mat Mat Total 539 | 95 209 235 Wait 6 | 2 . 4 Move 433 | 75 164 194 Hop . | . . . Pick Up 27 | 11 13 3 Fast Attach . | . . . Attach 19 | 6 4 9 Detach . | . . . Swap 6 | . 6 . Drop 8 | 1 7 . Fire 38 | . 15 23 Melee . | . . . Ram . | . . . Kick . | . . . Crush 2 | . . 2 Escape Stasis . | . . . Rewire . | . . . Trap . | . . . Miscellaneous . | . . . Route ------- -11/Scrapyard -10/Materials (discovered 2 exits: *Mat / [*Min]) -9/Materials History --------- Turn | Location | Event 17 | -11/Scrapyard | Discovered new exit (range 16) 92 | -11/Scrapyard | Entered Materials 230 | -10/Materials | Discovered new exit (range 15) 260 | -10/Materials | Discovered new exit (range 16) 309 | -10/Materials | Entered another Materials area 309 | -9/Materials | Evolved 2 slots: Utility x1, Weapon x1 519 | -9/Materials | Core integrity fell below 50% 570 | -9/Materials | Core integrity fell below 20% 574 | -9/Materials | Destroyed by Y-45 Defender with Beam Rifle Last Messages --------------- 00490_ Wheel destroyed. 00491_ Y-45 Defender destroyed. 00492_ Heat Sink destroyed. 00497_ S-10 Pest destroyed. 00499_ Spread Laser destroyed. 00523_ Acquired 29 matter. 00527_ Wheel destroyed. 00540_ Acquired Lgt. Armor Plating. 00544_ Ion Engine destroyed. 00551_ Slammed into S-10 Pest. 00551_ S-10 Pest destroyed. 00552_ Acquired 12 matter. 00553_ Imp. Terrain Scanner destroyed. 00555_ Slammed into Y-45 Defender. 00556_ Lgt. Armor Plating destroyed. 00560_ R-06 Scavenger inserts Hvy. Assault Rifle into recycling unit. 00563_ R-06 Scavenger inserts Imp. Ion Engine into recycling unit. 00565_ Lgt. Treads destroyed. 00566_ R-06 Scavenger inserts Flight Unit into recycling unit. 00569_ R-06 Scavenger inserts Lgt. Armor Plating into recycling unit. Map ----- +----------------------------------------------------+ | ????????????# #???????????????? | | ????????????# ##??????????????? | | ????????????# """ #???????????????? | | ????????????# """ #######???????????????? | | ??????######## """ #?????????????????????? | | ??????# # #?????????????????????? | | ??????# """ + #?????#???????????????? | | ?#????# R" # """ #???????#?????????????? | | ??????# """ # """ #?????????????????????? | | ??????# ?# """ #???#????????"????????? | | ??????# # ##########????????????? | | ??????######?# # #????????????? | | ?????????????# """ # """""#????????????? | | ?????????????# Y" u# ! """""#????????????? | | ?????????????# """ #% """""#????????????? | | ?????????????# YY/ [ """""?????? ??????? | | ??????????#??# % #* """""?????????????? | | ????????#######+### # """""?????????????? | | ????????# * # # """""?????????????? | | ????????# *[# # ?????????????? | | ????????# = [# #########?????????????? | | ????????# "" = + # [[[ #?????????????? | | ????????# " "=# # [[[ #?????????????? | | ????????# """" # # [ #?????#???????? | | ????????# # # #?????????????? | | ????????# # @ # #?????????????? | | ????????########### #####+###?????????????? | | ??????????????????# ######??????????? | | ?????????########## # #??????????? | | ?????????# # #??????????? | | ?????????# #! #??????????? | | ?????????# # #??????????? | | ?????????# + #??????????? | | ?????????# # #??????????? | | ?????????# #######+###### # #??????????? | | ?????????##### + # #??????????? | | ?????????????# " " """ ! ### #??????????? | | ?????????????# "T" """ #??#####??????????? | | ?????????????# """ """ #?????????????????? | | ?????????????# #?????????????????? | | ?????????????##############?????????????????? | | | | | | | | | | | | | | | | | | | +----------------------------------------------------+ Best States ------------- Heat Dissipation 48 Energy Generation 14 Energy Capacity 250 Matter Stores 300 Matter Capacity 300 Sight Range 16 Terrain Scan Range 16 Terrain Scan Density 10 Armor Coverage 225 Evasion (%) 44 Recoil Reduction 1 Item Schematics ----------------- None Robot Schematics ------------------ None Fabricated ------------ Nothing Alien Tech Used ----------------- None Achievements -------------- None Challenges ------------ None Game ------ Seed GravityImprinterInjector Manual? 0 Play Time 00:13:32 Cumulative 29.0 hours Start 2019.11.21 @ 23:08:50 End 2019.11.21 @ 23:18:37 Sessions 1 Manual Loads 0 Difficulty Rogue Special Mode None Game No. 48 Rogue 48 Adventurer 0 Explorer 0 Win Type - Total 0 Types 0/0/0/0/0/0/0 Lore% 8 Gallery% 17 Achievement% 12 Wizard Run 0 Options --------- ASCII 0 Keyboard 0 Movement Numpad Keybinds 0 Fullscreen 1 Font 18/SmallcapsGlow Map View 76x50 Tactical HUD 1 Map Filters NONE Filters NONE Steam 1 RUN: 36453fb3-994a-4ce2-ad4b-1591b058eccf